bitfinex-derivatives/quotes_SOLF0:USTF0_20250905
["timestamp","ask_amount","ask_price","bid_price","bid_amount"]
[1757093265506,12.53,203.03,203.02,0.0310229]
[1757093266822,12.53,203.05,203.02,0.0310229]
[1757093267021,7.6,203.08,203.02,0.0310229]
[1757093267414,7.6,203.08,203.0,7.39]
[1757093267415,5.51044167,203.12,203.0,3.39614249]
[1757093267615,7.6,203.11,203.01,7.39]
[1757093267921,12.53,203.09,203.01,7.39]
[1757093268723,5.51044167,203.12,203.01,7.39]
[1757093268923,4.93,203.09,203.01,7.39]
[1757093270925,12.61,203.08,203.01,7.39]
[1757093271220,4.93,203.05,202.97,7.48]
[1757093271426,7.68,203.03,203.02,0.03103037]
[1757093272128,12.61,203.03,203.02,0.03103037]
[1757093272821,4.93,203.08,203.02,0.03103037]
[1757093279431,7.10433515,203.08,203.02,0.03103037]
[1757093281633,2.17433515,203.12,203.05,9.65433515]
[1757093281833,7.68,203.13,203.07,2.17433515]
[1757093282035,7.68,203.13,203.07,9.65433515]
[1757093282241,7.68,203.17,203.11,2.17433515]
[1757093284537,7.68,203.15,203.11,2.17433515]
[1757093286144,7.68,203.15,203.08,9.65433515]
[1757093286342,2.17433515,203.16,203.11,0.03103575]
[1757093286541,7.68,203.15,203.11,0.03103575]
[1757093286741,2.17433515,203.16,203.11,0.03103575]
[1757093286944,78.41150136,203.2,203.11,0.03103575]
[1757093286945,9.85433515,203.12,203.11,0.03103575]
[1757093287543,7.68,203.12,203.11,0.03103575]
[1757093288642,7.68,203.12,203.03,2.17433515]
[1757093288840,2.17433515,203.09,203.03,2.17433515]
[1757093289038,9.85433515,203.09,203.03,2.17433515]
[1757093289236,7.68,203.04,203.0,7.48]
[1757093289440,2.17433515,203.06,202.99,9.65433515]
[1757093289847,2.17433515,203.06,203.02,7.48]
[1757093290242,7.10433515,203.06,203.02,7.48]
[1757093290746,4.93,203.06,203.01,2.17433515]
[1757093290946,4.93,203.06,203.02,7.48]
[1757093292243,4.93,203.06,203.0,2.17433515]
[1757093292442,2.17433515,203.08,203.03,7.48]
[1757093292647,7.10433515,203.08,203.02,2.17433515]
[1757093293451,2.17433515,203.08,203.02,9.65433515]
[1757093294046,7.10433515,203.08,203.02,9.65433515]
[1757093294650,2.17433515,203.1,203.02,9.65433515]
[1757093294850,4.93,203.09,203.05,7.48]
[1757093295149,7.68,203.11,203.05,7.48]
[1757093295351,2.17433515,203.13,203.06,9.65433515]
[1757093295946,2.17433515,203.14,203.06,9.65433515]
[1757093296346,2.17433515,203.14,203.08,2.17433515]
[1757093296547,2.17433515,203.13,203.08,2.17433515]
[1757093296749,7.68,203.12,203.08,2.17433515]
[1757093297252,7.68,203.12,203.08,9.65433515]
[1757093298655,7.99,203.12,203.06,2.17433515]
[1757093299848,12.92,203.12,203.06,2.17433515]
[1757093300445,2.17433515,203.09,202.95,7.54]
[1757093300658,10.16433515,203.07,203.01,2.17433515]
[1757093300851,10.16433515,203.07,202.99,9.71433515]
[1757093300852,2.17433515,203.05,202.99,9.71433515]
[1757093301255,7.99,203.02,202.97,9.71433515]
[1757093301455,7.99,203.02,202.97,2.17433515]
[1757093301656,7.99,203.02,202.98,7.54]
[1757093302557,0.85754417,203.1,202.98,2.17433515]
[1757093302558,2.17433515,203.04,202.98,2.17433515]
[1757093305256,7.99,203.03,202.98,2.17433515]
[1757093305455,10.16433515,203.04,202.98,2.17433515]
[1757093306757,7.99,203.04,202.98,2.17433515]
[1757093307058,7.99,203.04,203.0,9.71433515]
[1757093309959,7.99,203.08,203.01,7.54]
[1757093310159,12.92,203.07,203.03,7.54]
[1757093310353,4.93,203.05,203.03,7.54]
[1757093310558,4.93,203.05,203.02,2.17433515]
[1757093310559,12.92,203.05,203.02,2.17433515]
[1757093310756,7.99,203.05,203.02,2.17433515]
[1757093311058,2.17433515,203.04,202.98,9.71433515]
[1757093311557,12.92,203.05,202.98,9.71433515]
[1757093313360,4.93,203.05,203.0,2.17433515]
[1757093313556,12.92,203.05,203.01,7.54]
[1757093314553,12.92,203.05,203.0,2.17433515]
[1757093314759,12.92,203.05,203.01,7.54]
[1757093315762,7.99,203.05,203.01,7.54]
[1757093317965,2.17433515,203.04,202.97,7.54]
[1757093318164,4.93,203.02,202.97,9.71433515]
[1757093318462,7.99,203.01,202.97,2.17433515]
[1757093318764,7.99,203.01,202.98,7.54]
[1757093319858,7.10433515,203.03,202.98,7.54]
[1757093320059,12.92,203.02,202.98,9.71433515]
[1757093320864,12.92,203.02,202.99,7.54]
[1757093321466,12.92,203.02,202.98,2.17433515]
[1757093321663,2.17433515,203.03,202.98,7.54]
[1757093321972,7.99,203.02,202.98,7.54]
[1757093325367,7.99,203.02,202.97,2.17433515]
[1757093325671,7.99,203.03,202.99,9.71433515]
[1757093326372,2.17433515,203.05,203.0,7.54]
[1757093326574,7.99,203.04,203.0,7.54]
[1757093326875,2.17433515,203.06,202.99,7.54]
[1757093327068,7.99,203.05,202.99,9.71433515]
[1757093329175,7.99,203.05,202.99,7.54]
[1757093329377,7.78,203.03,202.96,7.77]
[1757093329574,2.17433515,203.0,202.92,7.77]
[1757093329874,2.17433515,203.0,202.94,2.17433515]
[1757093331273,9.95433515,203.0,202.93,2.17433515]
[1757093332677,7.78,203.0,202.93,2.17433515]
[1757093332877,4.93,203.05,202.97,2.17433515]
[1757093333074,4.93,203.05,202.96,7.77]
[1757093333075,7.10433515,203.05,202.96,7.77]
[1757093333275,7.10433515,203.05,202.99,2.17433515]
[1757093333676,7.78,203.04,202.99,2.17433515]
[1757093333879,4.93,203.04,202.99,9.94433515]
[1757093334075,7.10433515,203.07,203.01,9.94433515]
[1757093334275,2.17433515,203.07,203.01,9.94433515]
[1757093334576,7.78,203.06,203.01,7.77]
[1757093334772,2.17433515,203.07,203.01,7.77]
[1757093335174,4.93,203.06,203.01,7.77]
[1757093335575,7.78,203.05,203.01,7.77]
[1757093338081,4.93,203.06,203.0,2.17433515]
[1757093338281,12.71,203.06,203.0,2.17433515]
[1757093340190,12.71,203.06,203.0,9.94433515]
[1757093340888,12.71,203.06,203.0,2.17433515]
[1757093341591,12.71,203.05,202.97,11.16817]
[1757093342182,4.93,203.05,202.98,7.77]
[1757093342792,4.93,203.07,202.98,7.77]
[1757093343091,4.93,203.07,203.01,7.77]
[1757093343993,12.71,203.05,202.96,7.77]
[1757093346696,12.71,203.02,202.96,7.77]
[1757093348096,12.71,203.02,202.94,3.39817]
[1757093348896,12.71,203.02,202.93,7.77]
[1757093350401,7.78,203.0,202.93,7.77]
[1757093354406,7.78,202.99,202.88,7.77]
[1757093357200,7.78,202.99,202.89,7.77]
[1757093359603,7.78,202.99,202.9,3.39817]
[1757093359810,7.78,202.99,202.91,7.74]
[1757093364906,7.89,203.04,202.96,3.39817]
[1757093365106,7.89,203.04,202.97,7.74]
[1757093365407,4.93,203.03,202.97,7.74]
[1757093367305,4.93,203.03,202.96,3.39817]
[1757093367306,12.82,203.02,202.96,3.39817]
[1757093367512,7.89,203.01,202.94,7.74]
[1757093367705,12.82,203.01,202.94,7.74]
[1757093368408,12.82,203.01,202.96,3.39817]
[1757093368906,4.93,203.05,202.97,7.74]
[1757093369209,3.39817,203.08,202.97,7.74]
[1757093369210,4.93,203.03,202.97,7.74]
[1757093371413,4.93,203.05,202.97,7.74]
[1757093371716,4.93,203.03,202.96,3.39817]
[1757093371915,4.93,203.01,202.93,11.13817]
[1757093372118,12.82,203.01,202.93,11.13817]
[1757093372513,12.82,203.01,202.94,7.74]
[1757093374013,7.89,203.05,202.96,3.39817]
[1757093374317,4.93,203.04,202.97,7.74]
[1757093374915,7.89,203.08,203.0,7.74]
[1757093375308,4.93,203.07,203.0,7.74]
[1757093375510,4.93,203.05,203.0,7.74]
[1757093375717,12.82,203.04,203.0,7.74]
[1757093375912,7.89,203.03,203.0,7.74]
[1757093376112,7.89,203.08,202.99,3.39817]
[1757093376411,4.93,203.05,202.99,3.39817]
[1757093376618,12.82,203.02,202.92,3.39817]
[1757093377112,16.21817,203.02,202.92,3.39817]
[1757093377512,3.39817,202.96,202.87,7.74]
[1757093377716,7.89,202.95,202.87,7.74]
[1757093378309,3.39817,202.96,202.81,7.74]
[1757093378514,7.89,202.95,202.82,3.39817]
[1757093378819,7.89,202.95,202.83,7.74]
[1757093379320,7.89,202.94,202.84,7.74]
[1757093379923,7.89,202.94,202.87,7.74]
[1757093380316,4.93,202.97,202.89,3.39817]
[1757093380617,4.93,202.97,202.92,3.39817]
[1757093380818,12.82,203.03,202.92,11.13817]
[1757093381215,4.93,203.01,202.92,11.13817]
[1757093381422,12.82,203.01,202.92,11.13817]
[1757093381623,4.93,202.99,202.92,11.13817]
[1757093384521,4.93,202.97,202.92,7.74]
[1757093384725,7.89,202.96,202.88,3.39817]
[1757093385126,7.89,202.96,202.88,11.13817]
[1757093385734,12.82,202.96,202.88,11.13817]
[1757093391829,7.89,202.95,202.88,11.13817]
[1757093392034,4.93,202.97,202.88,11.13817]
[1757093392229,7.89,202.95,202.88,11.13817]
[1757093394132,7.89,202.95,202.89,7.45]
[1757093394332,12.82,202.99,202.91,3.39817]
[1757093394827,4.93,202.99,202.86,37.56]
[1757093395139,12.82,202.96,202.88,3.39817]
[1757093395737,7.89,202.95,202.87,10.84817]
[1757093396732,4.93,202.96,202.87,10.84817]
[1757093396933,7.89,202.95,202.87,10.84817]
[1757093400234,7.89,202.95,202.88,7.45]
[1757093400741,7.89,202.92,202.81,3.39817]
[1757093401236,8.32817,202.93,202.8,7.45]
[1757093401237,8.32817,202.93,202.8,10.84817]
[1757093401442,2.17864933,202.88,202.81,2.17864933]
[1757093401738,10.06864933,202.88,202.84,7.45]
[1757093401938,2.17864933,202.88,202.83,2.17864933]
[1757093402242,7.89,202.87,202.83,9.62864933]
[1757093403238,7.89,202.87,202.83,7.45]
[1757093403438,7.89,202.87,202.83,9.62864933]
[1757093403640,2.17864933,202.89,202.83,2.17864933]
[1757093403835,7.89,202.92,202.87,2.17864933]
[1757093404039,7.89,202.92,202.88,7.45]
[1757093404946,7.10864933,202.95,202.88,2.17864933]
[1757093405840,7.10864933,202.95,202.87,7.45]
[1757093406040,2.17864933,202.91,202.85,2.17864933]
[1757093406342,7.89,202.92,202.85,2.17864933]
[1757093406648,12.82,202.91,202.87,9.62864933]
[1757093407147,4.93,202.91,202.87,2.17864933]
[1757093407346,7.89,202.9,202.87,2.17864933]
[1757093408452,4.93,202.92,202.85,2.17864933]
[1757093408652,12.82,202.91,202.85,2.17864933]
[1757093408956,10.06864933,202.91,202.85,2.17864933]
[1757093409949,2.17864933,202.89,202.83,2.17864933]
[1757093410146,7.89,202.88,202.83,2.17864933]
[1757093410350,2.17864933,202.89,202.83,2.17864933]
[1757093410554,7.89,202.88,202.83,2.17864933]
[1757093410756,10.06864933,202.89,202.83,2.17864933]
[1757093411553,10.06864933,202.89,202.79,26.35]
[1757093411751,10.06864933,202.89,202.83,2.17864933]
[1757093412256,7.89,202.89,202.83,2.17864933]
[1757093414452,4.93,202.96,202.85,2.17864933]
[1757093414657,2.17864933,202.93,202.87,2.17864933]
[1757093414952,10.06864933,202.93,202.87,2.17864933]
[1757093415158,7.89,202.93,202.87,2.17864933]
[1757093415456,12.82,202.92,202.87,9.62864933]
[1757093416157,12.82,202.91,202.87,9.62864933]
[1757093417854,4.93,202.91,202.87,2.17864933]
[1757093418060,7.89,202.9,202.87,2.17864933]
[1757093418265,4.93,202.91,202.87,2.17864933]
[1757093418558,12.53,202.91,202.85,2.17864933]
[1757093419857,7.6,202.9,202.87,2.17864933]
[1757093421361,7.6,202.9,202.87,9.70864933]
[1757093424656,12.53,202.91,202.86,2.17864933]
[1757093424962,4.93,202.91,202.86,2.17864933]
[1757093425456,7.6,202.9,202.86,2.17864933]
[1757093425658,4.93,202.91,202.83,7.53]
[1757093425865,4.93,202.91,202.86,2.17864933]
[1757093426259,7.6,202.9,202.86,2.17864933]
[1757093426461,4.93,202.91,202.86,2.17864933]
[1757093426662,7.6,202.9,202.84,2.17864933]
[1757093426962,7.6,202.87,202.81,2.17864933]
[1757093427459,7.6,202.87,202.83,2.17864933]
[1757093427668,7.10864933,202.91,202.85,2.17864933]
[1757093427862,7.6,202.9,202.85,2.17864933]
[1757093428066,4.93,202.91,202.87,2.17864933]
[1757093428361,7.6,202.9,202.87,2.17864933]
[1757093428753,4.93,202.92,202.87,2.17864933]
[1757093428963,7.6,202.9,202.87,2.17864933]
[1757093433565,4.93,202.92,202.87,2.17864933]
[1757093433767,4.93,202.91,202.87,2.17864933]
[1757093433969,7.6,202.9,202.87,2.17864933]
[1757093436066,4.93,202.91,202.87,2.17864933]
[1757093436270,7.6,202.9,202.87,2.17864933]
[1757093436570,7.6,202.9,202.83,7.53]
[1757093436766,7.6,202.9,202.84,2.17864933]
[1757093438873,7.6,202.9,202.81,7.53]
[1757093439068,7.6,202.9,202.83,7.53]
[1757093439269,4.93,202.91,202.86,2.17864933]
[1757093439467,7.6,202.9,202.83,7.53]
[1757093439764,4.93,202.91,202.86,2.17864933]
[1757093440267,7.6,202.9,202.86,2.17864933]
[1757093440468,4.93,202.91,202.86,2.17864933]
[1757093440772,7.6,202.9,202.86,9.70864933]
[1757093440972,7.6,202.9,202.87,7.53]
[1757093442468,4.93,202.92,202.86,2.17864933]
[1757093442671,4.93,202.91,202.86,2.17864933]
[1757093442873,7.6,202.9,202.86,2.17864933]
[1757093444072,4.93,202.92,202.86,2.17864933]
[1757093444375,7.6,202.9,202.87,2.17864933]
[1757093444571,4.93,202.91,202.87,2.17864933]
[1757093444770,7.6,202.9,202.86,2.17864933]
[1757093444976,7.10864933,202.91,202.86,2.17864933]
[1757093445170,7.6,202.9,202.84,2.17864933]
[1757093449082,7.6,202.9,202.86,9.63864933]
[1757093449379,7.6,202.9,202.88,2.17864933]
[1757093449586,12.88,202.97,202.89,7.46]
[1757093449880,7.95,202.96,202.94,2.17864933]
[1757093450678,4.93,202.95,202.94,2.17864933]
[1757093451483,5.51044167,203.03,202.94,2.17864933]
[1757093451684,12.88,203.02,202.96,2.17864933]
[1757093451981,4.93,203.02,202.98,2.17864933]
[1757093452177,7.95,203.02,202.98,2.17864933]
[1757093452374,4.93,203.03,202.98,2.17864933]
[1757093452677,7.95,203.02,202.96,2.17864933]
[1757093452885,4.93,203.01,202.96,2.17864933]
[1757093453082,4.93,203.01,202.95,2.17864933]
[1757093453383,10.12864933,203.02,202.95,2.17864933]
[1757093453579,10.12864933,203.02,202.93,7.46]
[1757093453779,4.93,203.02,202.88,7.46]
[1757093453976,2.17864933,202.97,202.88,7.46]
[1757093454178,2.17864933,202.94,202.87,2.17864933]
[1757093454380,7.95,202.93,202.85,7.46]
[1757093454579,7.95,202.93,202.87,2.17864933]
[1757093456987,7.95,202.93,202.85,7.46]
[1757093457189,7.95,202.93,202.87,2.17864933]
[1757093457590,13.66,203.0,202.79,7.46]
[1757093457591,12.88,202.91,202.79,7.46]
[1757093457786,12.88,202.91,202.83,2.17864933]
[1757093457787,7.95,202.89,202.83,2.17864933]
[1757093458283,10.12864933,202.89,202.83,2.17864933]
[1757093459287,7.95,202.87,202.81,2.17864933]
[1757093459491,10.12864933,202.87,202.81,2.17864933]
[1757093459890,7.95,202.86,202.82,0.03749016]
[1757093460491,0.03256147,202.88,202.86,7.46]
[1757093461087,0.03256147,202.88,202.86,2.17864933]
[1757093461295,7.98256147,202.88,202.86,2.17864933]
[1757093461588,7.95,202.87,202.84,2.17864933]
[1757093461793,7.95,202.87,202.83,9.63864933]
[1757093461984,7.95,202.87,202.83,7.46]
[1757093462189,7.98256147,202.88,202.82,2.21613949]
[1757093463289,7.98256147,202.88,202.83,2.17864933]
[1757093463491,7.98256147,202.88,202.83,7.46]
[1757093464288,7.98256147,202.88,202.82,10.90056412]
[1757093464794,0.03256147,202.88,202.82,10.90056412]
[1757093465090,0.03256147,202.88,202.82,7.49749016]
[1757093465297,7.98256147,202.88,202.82,0.03749016]
[1757093467586,7.95,202.86,202.82,0.03749016]
[1757093468190,3.40307396,202.87,202.82,0.03749016]
[1757093468696,7.95,202.86,202.82,0.03749016]
[1757093469196,3.40307396,202.87,202.82,0.03749016]
[1757093469491,7.95,202.86,202.82,0.03749016]
[1757093469697,3.40307396,202.87,202.82,0.03749016]
[1757093470290,7.95,202.86,202.82,0.03749016]
[1757093470491,3.40307396,202.87,202.82,0.03749016]
[1757093471190,7.95,202.86,202.82,0.03749016]
[1757093471391,3.40307396,202.87,202.82,0.03749016]
[1757093471588,7.95,202.86,202.82,0.03749016]
[1757093472092,3.40307396,202.87,202.82,0.03749016]
[1757093472294,7.95,202.87,202.82,0.03749016]
[1757093472488,0.03256147,202.88,202.82,0.03749016]
[1757093473296,7.95,202.87,202.82,0.03749016]
[1757093473498,0.03256147,202.88,202.82,0.03749016]
[1757093473694,7.95,202.87,202.82,0.03749016]
[1757093473891,0.03256147,202.88,202.82,0.03749016]
[1757093474497,7.95,202.86,202.82,0.03749016]
[1757093474998,0.03256147,202.88,202.82,0.03749016]
[1757093475199,7.95,202.87,202.82,0.03749016]
[1757093475398,0.03256147,202.88,202.82,0.03749016]
[1757093483902,8.16,202.86,202.82,0.03749016]
[1757093484504,3.40307396,202.87,202.82,0.03749016]
[1757093484803,8.16,202.86,202.82,0.03749016]
[1757093485505,3.40307396,202.87,202.82,0.03749016]
[1757093486298,8.16,202.86,202.82,0.03749016]
[1757093486803,3.40307396,202.87,202.82,0.03749016]
[1757093487008,8.16,202.86,202.82,0.03749016]
[1757093487303,3.40307396,202.87,202.82,0.03749016]
[1757093488094,8.16,202.86,202.82,0.03749016]
[1757093489599,3.40307396,202.87,202.82,0.03749016]
[1757093490004,8.16,202.85,202.82,0.03749016]
[1757093490200,3.40307396,202.86,202.82,0.03749016]
[1757093490400,0.03256147,202.88,202.82,0.03749016]
[1757093490606,8.19256147,202.88,202.82,0.03749016]
[1757093492007,3.40307396,202.87,202.82,0.03749016]
[1757093492403,8.16,202.86,202.82,0.03749016]
[1757093493206,3.40307396,202.87,202.82,0.03749016]
[1757093493402,8.16,202.83,202.82,0.03749016]
[1757093493597,8.16,202.83,202.69,7.63]
[1757093493801,8.16,202.78,202.69,7.63]
[1757093494399,8.16,202.78,202.65,38.44]
[1757093494400,8.16,202.78,202.68,7.63]
[1757093494907,0.03341335,202.75,202.68,7.63]
[1757093499804,8.16,202.74,202.64,317.6]
[1757093500007,8.16,202.73,202.64,325.23]
[1757093500206,0.03341335,202.75,202.52,92.8081]
[1757093500207,8.16,202.7,202.59,7.63]
[1757093500608,0.03636065,202.67,202.62,7.63]
[1757093500809,0.03636065,202.67,202.65,7.63]
[1757093501008,11.56307396,202.77,202.66,7.63]
[1757093501206,0.03559016,202.68,202.66,7.63]
[1757093501406,11.56307396,202.77,202.66,7.63]
[1757093501708,11.56307396,202.77,202.69,7.63]
[1757093501899,11.56307396,202.77,202.68,3.40307396]
[1757093501900,0.03197489,202.74,202.68,3.40307396]
[1757093502099,0.03197489,202.74,202.67,7.63]
[1757093502314,0.03197489,202.74,202.67,11.03307396]
[1757093502516,0.03197489,202.74,202.68,7.63]
[1757093505410,0.03197489,202.74,202.7,7.63]
[1757093506709,0.03197489,202.74,202.69,3.40307396]
[1757093507111,0.03197489,202.74,202.68,4.4401]
[1757093507313,0.03197489,202.74,202.71,7.63]
[1757093507514,0.03197489,202.74,202.68,3.40307396]
[1757093507812,0.03197489,202.74,202.69,7.63]
[1757093508115,0.03197489,202.74,202.69,8.13]
[1757093508315,0.03197489,202.74,202.68,3.40307396]
[1757093508614,0.03197489,202.74,202.69,8.13]
[1757093508815,0.03197489,202.74,202.68,3.40307396]
[1757093509017,0.03197489,202.74,202.69,8.13]
[1757093509208,0.03197489,202.74,202.71,3.40307396]
[1757093509408,0.03197489,202.74,202.72,8.13]
[1757093509812,0.03197489,202.74,202.71,3.40307396]
[1757093510015,0.03197489,202.74,202.72,8.13]
[1757093510210,7.69,202.86,202.72,8.63]
[1757093510416,7.69,202.86,202.77,8.13]
[1757093511315,8.54840086,202.9,202.79,3.40307396]
[1757093511519,0.03668768,202.84,202.79,3.40307396]
[1757093512024,0.03668768,202.84,202.8,8.13]
[1757093512408,0.03668768,202.84,202.79,3.40307396]
[1757093512920,0.03668768,202.84,202.8,8.13]
[1757093513214,0.03668768,202.84,202.81,3.40307396]
[1757093513415,0.03668768,202.84,202.82,8.13]
[1757093513615,0.03668768,202.84,202.81,3.40307396]
[1757093513811,0.03668768,202.84,202.82,8.13]
[1757093515720,0.03668768,202.84,202.81,3.40307396]
[1757093515921,0.03668768,202.84,202.82,8.13]
[1757093516516,0.03668768,202.84,202.81,3.40307396]
[1757093516717,0.03668768,202.84,202.82,8.13]
[1757093516919,0.03668768,202.84,202.81,3.40307396]
[1757093517317,0.03668768,202.84,202.82,8.13]
[1757093517522,0.03668768,202.84,202.81,3.40307396]
[1757093519021,7.69,202.94,202.82,8.13]
[1757093519223,7.69,202.94,202.88,8.13]
[1757093519623,7.69,202.94,202.89,3.40307396]
[1757093519824,7.69,202.94,202.9,8.13]
[1757093520228,4.26112559,203.0,202.9,8.16518737]
[1757093520229,7.69,202.99,202.9,8.16518737]
[1757093521127,19.25136549,203.28,202.9,8.16518737]
[1757093521128,7.69,203.03,202.95,3.40307396]
[1757093521729,3.40307396,203.02,202.97,0.03367121]
[1757093521932,3.40307396,202.99,202.97,0.03367121]
[1757093522232,7.69,202.98,202.97,0.03367121]
[1757093523732,12.1235,202.98,202.97,0.03367121]
[1757093524131,4.4335,202.98,202.97,0.03367121]
[1757093524836,12.1235,202.98,202.97,0.03367121]
[1757093525533,14.29997251,202.98,202.97,0.03367121]
[1757093526330,14.79997251,202.98,202.97,0.03367121]
[1757093527230,19.72997251,202.98,202.97,0.03367121]
[1757093527626,12.62,202.96,202.87,10.30647251]
[1757093527830,14.79647251,202.92,202.87,10.30647251]
[1757093528334,4.93,202.92,202.87,2.17647251]
[1757093528536,7.69,202.96,202.89,2.17647251]
[1757093528734,0.03320378,202.92,202.89,2.17647251]
[1757093528935,0.03320378,202.92,202.89,8.13]
[1757093529334,0.03320378,202.92,202.88,2.17647251]
[1757093529535,0.03320378,202.92,202.89,8.13]
[1757093530530,0.03320378,202.92,202.91,8.13]
[1757093533037,0.03320378,202.92,202.86,10.30647251]
[1757093533439,4.93,202.93,202.86,10.30647251]
[1757093534140,0.03635349,202.92,202.86,10.30647251]
[1757093535338,0.03635349,202.92,202.86,8.13]
[1757093535541,0.03635349,202.92,202.88,8.13]
[1757093536241,7.72635349,202.92,202.88,8.13]
[1757093536439,0.03635349,202.92,202.87,2.17647251]
[1757093536836,0.03635349,202.92,202.88,8.13]
[1757093537735,0.03635349,202.92,202.87,2.17647251]
[1757093537943,0.03635349,202.92,202.91,2.17647251]
[1757093538137,0.03635349,202.92,202.91,10.30647251]
[1757093542740,0.03635349,202.92,202.91,8.13]
[1757093543046,0.03635349,202.92,202.77,14.8]
[1757093543047,0.03635349,202.92,202.88,2.17647251]
[1757093543242,0.03635349,202.92,202.88,9.72647251]
[1757093543440,8.03,202.92,202.88,9.72647251]
[1757093543645,7.10847251,202.94,202.88,9.72647251]
[1757093543841,8.06574431,202.92,202.86,2.17647251]
[1757093544340,0.03574431,202.92,202.88,2.17647251]
[1757093544542,0.03574431,202.92,202.89,7.55]
[1757093545343,0.03574431,202.92,202.88,2.17647251]
[1757093545544,0.03574431,202.92,202.89,7.55]
[1757093546047,0.03574431,202.92,202.88,2.17647251]
[1757093546244,0.03574431,202.92,202.89,7.55]
[1757093546950,0.03574431,202.92,202.88,2.17647251]
[1757093547145,0.03574431,202.92,202.84,4.4365]
[1757093547146,0.03574431,202.92,202.91,7.55]
[1757093548346,0.03574431,202.92,202.91,9.72647251]
[1757093549849,0.03574431,202.92,202.89,9.72647251]
[1757093550054,0.03574431,202.92,202.9,7.55]
[1757093550348,0.0340392,202.93,202.89,2.17647251]
[1757093550549,8.0640392,202.93,202.89,9.72647251]
[1757093550949,0.0340392,202.93,202.9,7.55]
[1757093551445,4.932,202.92,202.79,7.55]
[1757093551649,7.10847251,202.92,202.86,2.17647251]
[1757093552049,0.03339025,202.91,202.86,9.72647251]
[1757093552244,2.17647251,202.9,202.86,7.55]
[1757093552447,10.20647251,202.9,202.86,7.55]
[1757093552644,10.20647251,202.9,202.84,2.17647251]
[1757093552954,2.17647251,202.88,202.81,9.72647251]
[1757093553752,10.20647251,202.86,202.81,7.55]
[1757093553955,8.03,202.85,202.81,7.55]
[1757093554252,2.17647251,202.82,202.77,2.17647251]
[1757093554557,2.17647251,202.82,202.76,7.55]
[1757093555254,8.06229858,202.85,202.76,7.55]
[1757093555454,2.17647251,202.83,202.76,7.55]
[1757093555845,2.17647251,202.83,202.77,2.17647251]
[1757093556054,10.23877109,202.85,202.78,7.55]
[1757093556255,10.20647251,202.85,202.78,7.55]
[1757093556554,0.03589387,202.84,202.78,7.55]
[1757093557560,0.03589387,202.84,202.8,7.55]
[1757093558055,0.03589387,202.84,202.82,7.55]
[1757093558254,0.03589387,202.84,202.79,2.17647251]
[1757093558456,0.03589387,202.84,202.8,7.55]
[1757093558646,0.03589387,202.84,202.79,2.17647251]
[1757093558955,0.03589387,202.84,202.8,7.55]
[1757093559353,0.03589387,202.84,202.74,4.4387]
[1757093559560,8.06589387,202.84,202.78,2.17647251]
[1757093559757,10.20647251,202.83,202.78,2.17647251]
[1757093559957,10.24102971,202.83,202.79,7.55]
[1757093560459,2.21102971,202.83,202.76,9.72647251]
[1757093561259,10.20647251,202.81,202.76,9.72647251]
[1757093561459,10.20647251,202.81,202.76,7.55]
[1757093561656,10.20647251,202.81,202.75,2.17647251]
[1757093561965,10.20647251,202.81,202.75,9.72647251]
[1757093562163,0.03112076,202.8,202.75,9.72647251]
[1757093562462,0.03112076,202.8,202.76,7.55]
[1757093562661,0.03112076,202.8,202.75,2.17647251]
[1757093562859,0.03112076,202.8,202.78,7.55]
[1757093563057,0.03112076,202.8,202.79,9.72647251]
[1757093564258,0.03112076,202.8,202.78,2.17647251]